{"text_format":"1","workbook":"xlsx","n_sheets":6,"sheets":["ТРАНЗИТ-СТАР","ИП","КЕК","В КНИГУ ИП","В КНИГУ КЕК","В КНИГУ ТР.СТАР"],"not_rendered":{"charts":0,"images":0,"macros":1,"external_links":0,"defined_names":6,"comments":0,"pivot_tables":0},"unopened":[],"bounds":{"document_bytes":16777216,"sheet_cells":100000,"rows_first":2000,"rows_last":500,"rows_between":2000,"halvings":0,"cell_chars":16384,"cell_head_chars":4096},"cells_cut":0,"cells_raw":0,"read":"whole","date_system":"1900"}

{"sheet":"ТРАНЗИТ-СТАР","index":0,"n_rows":6,"n_cols":11,"rows_kept":6,"cut":false,"hidden":false,"merged":[]}
["номер","название судна","флаг","дата","откуда","куда","полный/ неполный канал","фирма","Примечание (инд.лоцман, пополнение телефона)",null,"ИП/ КЕК"]
[null,null,null,"2020-04-07"]
[423,"Tyumen-1","Панама","2020-04-07","Румыния","Ростов",null,"TBS",null,null,"ТСП"]
[424,"Находка","Россия","2020-04-07","Турция","Азов","неполный","Fili",null,null,"КЕК"]
[425,"Chelsea-4","Мальта","2020-04-07","Турция","Ростов",null,"Valship",null,null,"ТСП"]
[426,"Havva Ana","Марш-вы о-ва","2020-04-07","Мариуполь","Испания","полный","St.Agency","танкер",null,"ИП"]

{"sheet":"ИП","index":1,"n_rows":2,"n_cols":9,"rows_kept":2,"cut":false,"hidden":false,"merged":[]}
["номер","название судна","флаг","дата","откуда","куда","полный/ неполный канал","Лоцманская служба","фирма"]
[1,"Havva Ana","Марш-вы о-ва","2020-04-07","Мариуполь","Испания","полный","Ювас-Транс","ООО Транзит-Стар"]

{"sheet":"КЕК","index":2,"n_rows":2,"n_cols":9,"rows_kept":2,"cut":false,"hidden":false,"merged":[]}
["номер","название судна","флаг","дата","откуда","куда","полный/ неполный канал","Лоцманская служба","фирма"]
[1,"Находка","Россия","2020-04-07","Турция","Азов","неполный","РМП","ООО Транзит-Стар"]

{"sheet":"В КНИГУ ИП","index":3,"n_rows":36,"n_cols":11,"rows_kept":36,"cut":false,"hidden":false,"merged":[[1,10,6,15]]}
[]
[136,{"$f":"LOOKUP(A2,ИП!A:A,ИП!B:B)","v":"Havva Ana"},null,{"$f":"INDEX('ТРАНЗИТ-СТАР'!H:H,MATCH(B2,'ТРАНЗИТ-СТАР'!B:B,0))","v":"St.Agency"},"DA",null,null,null,null,null,"Для заполнения данных достаточно ввести номер. Под названием фирмы (там, где подчеркивание, находится список, для выбора Транзит-Стара, Шиппинга или никого:))"]
[null,{"$f":"LOOKUP(A2,ИП!A:A,ИП!C:C)","v":"Марш-вы о-ва"},null,"(ООО \"Транзит-Стар\")","Л"]
[null,null,null,null,"Н"]
[null,null,null,null,"М"]
[null,null,null,null,"К"]
[null,{"$f":"LOOKUP(A2,ИП!A:A,ИП!D:D)","v":"2020-04-07"}]
[null,null,null,null,"АГ"]
[137,{"$f":"LOOKUP(A9,ИП!A:A,ИП!B:B)","v":"Havva Ana"},null,{"$f":"INDEX('ТРАНЗИТ-СТАР'!H:H,MATCH(B9,'ТРАНЗИТ-СТАР'!B:B,0))","v":"St.Agency"},"DA"]
[null,{"$f":"LOOKUP(A9,ИП!A:A,ИП!C:C)","v":"Марш-вы о-ва"},null,"(ООО\"ИМАС Шиппинг\")","Л"]
[null,null,null,null,"Н"]
[null,null,null,null,"М"]
[null,null,null,null,"К"]
[null,{"$f":"LOOKUP(A9,ИП!A:A,ИП!D:D)","v":"2020-04-07"}]
[null,null,null,null,"АГ"]
[138,{"$f":"LOOKUP(A16,ИП!A:A,ИП!B:B)","v":"Havva Ana"},null,{"$f":"INDEX('ТРАНЗИТ-СТАР'!H:H,MATCH(B16,'ТРАНЗИТ-СТАР'!B:B,0))","v":"St.Agency"},"DA"]
[null,{"$f":"LOOKUP(A16,ИП!A:A,ИП!C:C)","v":"Марш-вы о-ва"},null,"(ООО\"ИМАС Шиппинг\")","Л"]
[null,null,null,null,"Н"]
[null,null,null,null,"М"]
[null,null,null,null,"К"]
[null,{"$f":"LOOKUP(A16,ИП!A:A,ИП!D:D)","v":"2020-04-07"}]
[null,null,null,null,"АГ"]
[139,{"$f":"LOOKUP(A23,ИП!A:A,ИП!B:B)","v":"Havva Ana"},null,{"$f":"INDEX('ТРАНЗИТ-СТАР'!H:H,MATCH(B23,'ТРАНЗИТ-СТАР'!B:B,0))","v":"St.Agency"},"DA"]
[null,{"$f":"LOOKUP(A23,ИП!A:A,ИП!C:C)","v":"Марш-вы о-ва"},null,"(ООО \"Транзит-Стар\")","Л"]
[null,null,null,null,"Н"]
[null,null,null,null,"М"]
[null,null,null,null,"К"]
[null,{"$f":"LOOKUP(A23,ИП!A:A,ИП!D:D)","v":"2020-04-07"}]
[null,null,null,null,"АГ"]
[140,{"$f":"LOOKUP(A30,ИП!A:A,ИП!B:B)","v":"Havva Ana"},null,{"$f":"INDEX('ТРАНЗИТ-СТАР'!H:H,MATCH(B30,'ТРАНЗИТ-СТАР'!B:B,0))","v":"St.Agency"},"DA"]
[null,{"$f":"LOOKUP(A30,ИП!A:A,ИП!C:C)","v":"Марш-вы о-ва"},null,"(ООО\"ИМАС Шиппинг\")","Л"]
[null,null,null,null,"Н"]
[null,null,null,null,"М"]
[null,null,null,null,"К"]
[null,{"$f":"LOOKUP(A30,ИП!A:A,ИП!D:D)","v":"2020-04-07"}]
[null,null,null,null,"АГ"]

{"sheet":"В КНИГУ КЕК","index":4,"n_rows":36,"n_cols":11,"rows_kept":36,"cut":false,"hidden":false,"merged":[[2,10,7,15]]}
[]
[7,{"$f":"LOOKUP(A2,КЕК!A:A,КЕК!B:B)","v":"Находка"},null,{"$f":"INDEX('ТРАНЗИТ-СТАР'!H:H,MATCH(B2,'ТРАНЗИТ-СТАР'!B:B,0))","v":"Fili"},"DA"]
[null,{"$f":"LOOKUP(A2,КЕК!A:A,КЕК!C:C)","v":"Россия"},null,"________","Л",null,null,null,null,null,"Для заполнения данных достаточно ввести номер. Под названием фирмы (там, где подчеркивание, находится список, для выбора Транзит-Стара, Шиппинга или никого:))"]
[null,null,null,null,"Н"]
[null,null,null,null,"М"]
[null,null,null,null,"К"]
[null,{"$f":"LOOKUP(A2,КЕК!A:A,КЕК!D:D)","v":"2020-04-07"}]
[null,null,null,null,"АГ"]
[7,{"$f":"LOOKUP(A9,КЕК!A:A,КЕК!B:B)","v":"Находка"},null,{"$f":"INDEX('ТРАНЗИТ-СТАР'!H:H,MATCH(B9,'ТРАНЗИТ-СТАР'!B:B,0))","v":"Fili"},"DA"]
[null,{"$f":"LOOKUP(A9,КЕК!A:A,КЕК!C:C)","v":"Россия"},null,"________","Л"]
[null,null,null,null,"Н"]
[null,null,null,null,"М"]
[null,null,null,null,"К"]
[null,{"$f":"LOOKUP(A9,КЕК!A:A,КЕК!D:D)","v":"2020-04-07"}]
[null,null,null,null,"АГ"]
[7,{"$f":"LOOKUP(A16,КЕК!A:A,КЕК!B:B)","v":"Находка"},null,{"$f":"INDEX('ТРАНЗИТ-СТАР'!H:H,MATCH(B16,'ТРАНЗИТ-СТАР'!B:B,0))","v":"Fili"},"DA"]
[null,{"$f":"LOOKUP(A16,КЕК!A:A,КЕК!C:C)","v":"Россия"},null,"________","Л"]
[null,null,null,null,"Н"]
[null,null,null,null,"М"]
[null,null,null,null,"К"]
[null,{"$f":"LOOKUP(A16,КЕК!A:A,КЕК!D:D)","v":"2020-04-07"}]
[null,null,null,null,"АГ"]
[7,{"$f":"LOOKUP(A23,КЕК!A:A,КЕК!B:B)","v":"Находка"},null,{"$f":"INDEX('ТРАНЗИТ-СТАР'!H:H,MATCH(B23,'ТРАНЗИТ-СТАР'!B:B,0))","v":"Fili"},"DA"]
[null,{"$f":"LOOKUP(A23,КЕК!A:A,КЕК!C:C)","v":"Россия"},null,"________","Л"]
[null,null,null,null,"Н"]
[null,null,null,null,"М"]
[null,null,null,null,"К"]
[null,{"$f":"LOOKUP(A23,КЕК!A:A,КЕК!D:D)","v":"2020-04-07"}]
[null,null,null,null,"АГ"]
[7,{"$f":"LOOKUP(A30,КЕК!A:A,КЕК!B:B)","v":"Находка"},null,{"$f":"INDEX('ТРАНЗИТ-СТАР'!H:H,MATCH(B30,'ТРАНЗИТ-СТАР'!B:B,0))","v":"Fili"},"DA"]
[null,{"$f":"LOOKUP(A30,КЕК!A:A,КЕК!C:C)","v":"Россия"},null,"________","Л"]
[null,null,null,null,"Н"]
[null,null,null,null,"М"]
[null,null,null,null,"К"]
[null,{"$f":"LOOKUP(A30,КЕК!A:A,КЕК!D:D)","v":"2020-04-07"}]
[null,null,null,null,"АГ"]

{"sheet":"В КНИГУ ТР.СТАР","index":5,"n_rows":63,"n_cols":5,"rows_kept":63,"cut":false,"hidden":false,"merged":[]}
[]
[320,{"$f":"INDEX('ТРАНЗИТ-СТАР'!B:B,MATCH(A2,'ТРАНЗИТ-СТАР'!A:A,0))","v":{"$error":"#N/A"}},null,{"$f":"INDEX('ТРАНЗИТ-СТАР'!H:H,MATCH(A2,'ТРАНЗИТ-СТАР'!A:A,0))","v":{"$error":"#N/A"}},"DA"]
[null,{"$f":"INDEX('ТРАНЗИТ-СТАР'!C:C,MATCH(A2,'ТРАНЗИТ-СТАР'!A:A,0))","v":{"$error":"#N/A"}}]
[null,null,null,null,{"$f":"INDEX('ТРАНЗИТ-СТАР'!K:K,MATCH(A2,'ТРАНЗИТ-СТАР'!A:A,0))","v":{"$error":"#N/A"}}]
[null,{"$f":"INDEX('ТРАНЗИТ-СТАР'!D:D,MATCH(A2,'ТРАНЗИТ-СТАР'!A:A,0))","v":{"$error":"#N/A"}}]
[null,null,null,null,"АГ"]
[320,{"$f":"INDEX('ТРАНЗИТ-СТАР'!B:B,MATCH(A7,'ТРАНЗИТ-СТАР'!A:A,0))","v":{"$error":"#N/A"}},null,{"$f":"INDEX('ТРАНЗИТ-СТАР'!H:H,MATCH(A7,'ТРАНЗИТ-СТАР'!A:A,0))","v":{"$error":"#N/A"}},"DA"]
[null,{"$f":"INDEX('ТРАНЗИТ-СТАР'!C:C,MATCH(A7,'ТРАНЗИТ-СТАР'!A:A,0))","v":{"$error":"#N/A"}}]
[null,null,null,null,{"$f":"INDEX('ТРАНЗИТ-СТАР'!K:K,MATCH(A7,'ТРАНЗИТ-СТАР'!A:A,0))","v":{"$error":"#N/A"}}]
[null,{"$f":"INDEX('ТРАНЗИТ-СТАР'!D:D,MATCH(A7,'ТРАНЗИТ-СТАР'!A:A,0))","v":{"$error":"#N/A"}}]
[null,null,null,null,"АГ"]
[320,{"$f":"INDEX('ТРАНЗИТ-СТАР'!B:B,MATCH(A12,'ТРАНЗИТ-СТАР'!A:A,0))","v":{"$error":"#N/A"}},null,{"$f":"INDEX('ТРАНЗИТ-СТАР'!H:H,MATCH(A12,'ТРАНЗИТ-СТАР'!A:A,0))","v":{"$error":"#N/A"}},"DA"]
[null,{"$f":"INDEX('ТРАНЗИТ-СТАР'!C:C,MATCH(A12,'ТРАНЗИТ-СТАР'!A:A,0))","v":{"$error":"#N/A"}}]
[null,null,null,null,{"$f":"INDEX('ТРАНЗИТ-СТАР'!K:K,MATCH(A12,'ТРАНЗИТ-СТАР'!A:A,0))","v":{"$error":"#N/A"}}]
[null,{"$f":"INDEX('ТРАНЗИТ-СТАР'!D:D,MATCH(A12,'ТРАНЗИТ-СТАР'!A:A,0))","v":{"$error":"#N/A"}}]
[null,null,null,null,"АГ"]
[320,{"$f":"INDEX('ТРАНЗИТ-СТАР'!B:B,MATCH(A17,'ТРАНЗИТ-СТАР'!A:A,0))","v":{"$error":"#N/A"}},null,{"$f":"INDEX('ТРАНЗИТ-СТАР'!H:H,MATCH(A17,'ТРАНЗИТ-СТАР'!A:A,0))","v":{"$error":"#N/A"}},"DA"]
[null,{"$f":"INDEX('ТРАНЗИТ-СТАР'!C:C,MATCH(A17,'ТРАНЗИТ-СТАР'!A:A,0))","v":{"$error":"#N/A"}}]
[null,null,null,null,{"$f":"INDEX('ТРАНЗИТ-СТАР'!K:K,MATCH(A17,'ТРАНЗИТ-СТАР'!A:A,0))","v":{"$error":"#N/A"}}]
[null,{"$f":"INDEX('ТРАНЗИТ-СТАР'!D:D,MATCH(A17,'ТРАНЗИТ-СТАР'!A:A,0))","v":{"$error":"#N/A"}}]
[null,null,null,null,"АГ"]
[320,{"$f":"INDEX('ТРАНЗИТ-СТАР'!B:B,MATCH(A22,'ТРАНЗИТ-СТАР'!A:A,0))","v":{"$error":"#N/A"}},null,{"$f":"INDEX('ТРАНЗИТ-СТАР'!H:H,MATCH(A22,'ТРАНЗИТ-СТАР'!A:A,0))","v":{"$error":"#N/A"}},"DA"]
[null,{"$f":"INDEX('ТРАНЗИТ-СТАР'!C:C,MATCH(A22,'ТРАНЗИТ-СТАР'!A:A,0))","v":{"$error":"#N/A"}}]
[null,null,null,null,{"$f":"INDEX('ТРАНЗИТ-СТАР'!K:K,MATCH(A22,'ТРАНЗИТ-СТАР'!A:A,0))","v":{"$error":"#N/A"}}]
[null,{"$f":"INDEX('ТРАНЗИТ-СТАР'!D:D,MATCH(A22,'ТРАНЗИТ-СТАР'!A:A,0))","v":{"$error":"#N/A"}}]
[null,null,null,null,"АГ"]
[320,{"$f":"INDEX('ТРАНЗИТ-СТАР'!B:B,MATCH(A27,'ТРАНЗИТ-СТАР'!A:A,0))","v":{"$error":"#N/A"}},null,{"$f":"INDEX('ТРАНЗИТ-СТАР'!H:H,MATCH(A27,'ТРАНЗИТ-СТАР'!A:A,0))","v":{"$error":"#N/A"}},"DA"]
[null,{"$f":"INDEX('ТРАНЗИТ-СТАР'!C:C,MATCH(A27,'ТРАНЗИТ-СТАР'!A:A,0))","v":{"$error":"#N/A"}}]
[null,null,null,null,{"$f":"INDEX('ТРАНЗИТ-СТАР'!K:K,MATCH(A27,'ТРАНЗИТ-СТАР'!A:A,0))","v":{"$error":"#N/A"}}]
[null,{"$f":"INDEX('ТРАНЗИТ-СТАР'!D:D,MATCH(A27,'ТРАНЗИТ-СТАР'!A:A,0))","v":{"$error":"#N/A"}}]
[null,null,null,null,"АГ"]
[]
[]
[320,{"$f":"INDEX('ТРАНЗИТ-СТАР'!B:B,MATCH(A34,'ТРАНЗИТ-СТАР'!A:A,0))","v":{"$error":"#N/A"}},null,{"$f":"INDEX('ТРАНЗИТ-СТАР'!H:H,MATCH(A34,'ТРАНЗИТ-СТАР'!A:A,0))","v":{"$error":"#N/A"}},"DA"]
[null,{"$f":"INDEX('ТРАНЗИТ-СТАР'!C:C,MATCH(A34,'ТРАНЗИТ-СТАР'!A:A,0))","v":{"$error":"#N/A"}}]
[null,null,null,null,{"$f":"INDEX('ТРАНЗИТ-СТАР'!K:K,MATCH(A34,'ТРАНЗИТ-СТАР'!A:A,0))","v":{"$error":"#N/A"}}]
[null,{"$f":"INDEX('ТРАНЗИТ-СТАР'!D:D,MATCH(A34,'ТРАНЗИТ-СТАР'!A:A,0))","v":{"$error":"#N/A"}}]
[null,null,null,null,"АГ"]
[320,{"$f":"INDEX('ТРАНЗИТ-СТАР'!B:B,MATCH(A39,'ТРАНЗИТ-СТАР'!A:A,0))","v":{"$error":"#N/A"}},null,{"$f":"INDEX('ТРАНЗИТ-СТАР'!H:H,MATCH(A39,'ТРАНЗИТ-СТАР'!A:A,0))","v":{"$error":"#N/A"}},"DA"]
[null,{"$f":"INDEX('ТРАНЗИТ-СТАР'!C:C,MATCH(A39,'ТРАНЗИТ-СТАР'!A:A,0))","v":{"$error":"#N/A"}}]
[null,null,null,null,{"$f":"INDEX('ТРАНЗИТ-СТАР'!K:K,MATCH(A39,'ТРАНЗИТ-СТАР'!A:A,0))","v":{"$error":"#N/A"}}]
[null,{"$f":"INDEX('ТРАНЗИТ-СТАР'!D:D,MATCH(A39,'ТРАНЗИТ-СТАР'!A:A,0))","v":{"$error":"#N/A"}}]
[null,null,null,null,"АГ"]
[320,{"$f":"INDEX('ТРАНЗИТ-СТАР'!B:B,MATCH(A44,'ТРАНЗИТ-СТАР'!A:A,0))","v":{"$error":"#N/A"}},null,{"$f":"INDEX('ТРАНЗИТ-СТАР'!H:H,MATCH(A44,'ТРАНЗИТ-СТАР'!A:A,0))","v":{"$error":"#N/A"}},"DA"]
[null,{"$f":"INDEX('ТРАНЗИТ-СТАР'!C:C,MATCH(A44,'ТРАНЗИТ-СТАР'!A:A,0))","v":{"$error":"#N/A"}}]
[null,null,null,null,{"$f":"INDEX('ТРАНЗИТ-СТАР'!K:K,MATCH(A44,'ТРАНЗИТ-СТАР'!A:A,0))","v":{"$error":"#N/A"}}]
[null,{"$f":"INDEX('ТРАНЗИТ-СТАР'!D:D,MATCH(A44,'ТРАНЗИТ-СТАР'!A:A,0))","v":{"$error":"#N/A"}}]
[null,null,null,null,"АГ"]
[320,{"$f":"INDEX('ТРАНЗИТ-СТАР'!B:B,MATCH(A49,'ТРАНЗИТ-СТАР'!A:A,0))","v":{"$error":"#N/A"}},null,{"$f":"INDEX('ТРАНЗИТ-СТАР'!H:H,MATCH(A49,'ТРАНЗИТ-СТАР'!A:A,0))","v":{"$error":"#N/A"}},"DA"]
[null,{"$f":"INDEX('ТРАНЗИТ-СТАР'!C:C,MATCH(A49,'ТРАНЗИТ-СТАР'!A:A,0))","v":{"$error":"#N/A"}}]
[null,null,null,null,{"$f":"INDEX('ТРАНЗИТ-СТАР'!K:K,MATCH(A49,'ТРАНЗИТ-СТАР'!A:A,0))","v":{"$error":"#N/A"}}]
[null,{"$f":"INDEX('ТРАНЗИТ-СТАР'!D:D,MATCH(A49,'ТРАНЗИТ-СТАР'!A:A,0))","v":{"$error":"#N/A"}}]
[null,null,null,null,"АГ"]
[320,{"$f":"INDEX('ТРАНЗИТ-СТАР'!B:B,MATCH(A54,'ТРАНЗИТ-СТАР'!A:A,0))","v":{"$error":"#N/A"}},null,{"$f":"INDEX('ТРАНЗИТ-СТАР'!H:H,MATCH(A54,'ТРАНЗИТ-СТАР'!A:A,0))","v":{"$error":"#N/A"}},"DA"]
[null,{"$f":"INDEX('ТРАНЗИТ-СТАР'!C:C,MATCH(A54,'ТРАНЗИТ-СТАР'!A:A,0))","v":{"$error":"#N/A"}}]
[null,null,null,null,{"$f":"INDEX('ТРАНЗИТ-СТАР'!K:K,MATCH(A54,'ТРАНЗИТ-СТАР'!A:A,0))","v":{"$error":"#N/A"}}]
[null,{"$f":"INDEX('ТРАНЗИТ-СТАР'!D:D,MATCH(A54,'ТРАНЗИТ-СТАР'!A:A,0))","v":{"$error":"#N/A"}}]
[null,null,null,null,"АГ"]
[320,{"$f":"INDEX('ТРАНЗИТ-СТАР'!B:B,MATCH(A59,'ТРАНЗИТ-СТАР'!A:A,0))","v":{"$error":"#N/A"}},null,{"$f":"INDEX('ТРАНЗИТ-СТАР'!H:H,MATCH(A59,'ТРАНЗИТ-СТАР'!A:A,0))","v":{"$error":"#N/A"}},"DA"]
[null,{"$f":"INDEX('ТРАНЗИТ-СТАР'!C:C,MATCH(A59,'ТРАНЗИТ-СТАР'!A:A,0))","v":{"$error":"#N/A"}}]
[null,null,null,null,{"$f":"INDEX('ТРАНЗИТ-СТАР'!K:K,MATCH(A59,'ТРАНЗИТ-СТАР'!A:A,0))","v":{"$error":"#N/A"}}]
[null,{"$f":"INDEX('ТРАНЗИТ-СТАР'!D:D,MATCH(A59,'ТРАНЗИТ-СТАР'!A:A,0))","v":{"$error":"#N/A"}}]
[null,null,null,null,"АГ"]